fUST/lending_fUST_20250914
["ID","MTS","AMOUNT","RATE_DAILY","PERIOD"]
[385341367,1757788232321,-480.0,0.00024657,3]
[385341369,1757788232330,-480.0,0.00024657,3]
[385341371,1757788232339,-480.0,0.00024657,3]
[385341373,1757788232348,-480.0,0.00024657,3]
[385341375,1757788232358,-480.0,0.00024657,3]
[385341377,1757788232368,-200.0,0.00024657,3]
[385341379,1757788232377,-480.0,0.00024657,3]
[385341381,1757788232386,-480.0,0.00024657,3]
[385341383,1757788232395,-480.0,0.00024657,3]
[385341384,1757788232404,-480.0,0.00024657,3]
[385341386,1757788232414,-480.0,0.00024657,3]
[385341389,1757788232423,-480.0,0.00024657,3]
[385341391,1757788232433,-480.0,0.00024657,3]
[385341392,1757788232442,-480.0,0.00024657,3]
[385341395,1757788232452,-480.0,0.00024657,3]
[385341396,1757788232462,-480.0,0.00024657,3]
[385341398,1757788232472,-514.04,0.00024657,3]
[385341400,1757788232481,-480.0,0.00024657,3]
[385341402,1757788232490,-536.48,0.00024657,3]
[385341404,1757788232500,-480.0,0.00024657,3]
[385341406,1757788232509,-480.0,0.00024657,3]
[385341409,1757788232518,-480.0,0.00024657,3]
[385341410,1757788232528,-480.0,0.00024657,3]
[385341413,1757788232538,-480.0,0.00024657,3]
[385341415,1757788232547,-480.0,0.00024657,3]
[385341417,1757788232557,-480.0,0.00024657,3]
[385341419,1757788232566,-480.0,0.00024657,3]
[385341421,1757788232576,-480.0,0.00024657,3]
[385341423,1757788232586,-480.0,0.00024657,3]
[385341425,1757788232595,-480.0,0.00024657,3]
[385341427,1757788232605,-480.0,0.00024657,3]
[385341429,1757788232615,-480.0,0.00024657,3]
[385341431,1757788232624,-480.0,0.00024657,3]
[385341433,1757788232634,-669.89,0.00024657,3]
[385341435,1757788232643,-1250.12,0.00024657,3]
[385341437,1757788232652,-1536.61,0.00024657,3]
[385341439,1757788232662,-480.0,0.00024657,3]
[385341441,1757788232672,-480.0,0.00024657,3]
[385341443,1757788232681,-480.0,0.00024657,3]
[385341445,1757788232692,-866.49,0.00024657,3]
[385341447,1757788232702,-480.0,0.00024657,3]
[385341449,1757788232713,-480.0,0.00024657,3]
[385341451,1757788232723,-480.0,0.00024657,3]
[385341453,1757788232733,-2573.26,0.00024657,3]
[385341455,1757788232742,-1562.94,0.00024657,3]
[385341457,1757788232752,-480.0,0.00024657,3]
[385341459,1757788232762,-480.0,0.00024657,3]
[385341461,1757788232771,-2864.38,0.00024657,3]
[385341463,1757788232781,-490.96,0.00024657,3]
[385341465,1757788232790,-489.65,0.00024657,3]
[385341467,1757788232799,-480.0,0.00024657,3]
[385341469,1757788232808,-870.57,0.00024657,3]
[385341471,1757788232817,-480.0,0.00024657,3]
[385341473,1757788232827,-803.46920831,0.00024657,3]
[385341476,1757788232839,-400.25079169,0.00024657,3]
[385341478,1757788232849,-240.54132884,0.00024657,3]
[385341480,1757788232860,-306.62388219,0.00024657,3]
[385341540,1757788237795,-1954.47812692,0.00024657,3]
[385341551,1757788239886,-352.14524183,0.00023148,2]
[385341557,1757788239972,-89.69865073,0.00023148,2]
[385341558,1757788239981,-3763.85666205,0.00024657,3]
[385341561,1757788239991,-480.0,0.00024657,3]
[385341563,1757788240000,-1437.62,0.00024657,3]
[385341564,1757788240009,-480.0,0.00024657,3]
[385341566,1757788240018,-480.0,0.00024657,3]
[385341568,1757788240027,-480.0,0.00024657,3]
[385341570,1757788240036,-495.0850938,0.00024657,3]
[385341572,1757788240045,-480.0,0.00024657,3]
[385341574,1757788240054,-967.66,0.00024657,3]
[385341576,1757788240064,-417.15472785,0.00024657,3]
[385341578,1757788240073,-1255.39,0.00024657,3]
[385341581,1757788240082,-480.0,0.00024657,3]
[385341584,1757788240091,-480.0,0.00024657,3]
[385341587,1757788240100,-480.0,0.00024657,3]
[385341590,1757788240109,-480.0,0.00024657,3]
[385341592,1757788240118,-480.0,0.00024657,3]
[385341594,1757788240127,-379.06046253,0.00024657,3]
[385341596,1757788240138,-100.93953747,0.00024657,3]
[385341598,1757788240147,-480.0,0.00024657,3]
[385341600,1757788240156,-632.79,0.00024657,3]
[385341602,1757788240166,-552.48,0.00024657,3]
[385341604,1757788240175,-855.24,0.00024657,3]
[385341606,1757788240184,-480.0,0.00024657,3]
[385341608,1757788240193,-480.0,0.00024657,3]
[385341610,1757788240202,-4462.96,0.00024657,3]
[385341612,1757788240211,-480.0,0.00024657,3]
[385341614,1757788240220,-480.0,0.00024657,3]
[385341616,1757788240228,-480.0,0.00024657,3]
[385341618,1757788240237,-541.56,0.00024657,3]
[385341620,1757788240246,-651.79,0.00024657,3]
[385341622,1757788240256,-480.0,0.00024657,3]
[385341624,1757788240265,-539.91,0.00024657,3]
[385341626,1757788240274,-1040.33,0.00024657,3]
[385341628,1757788240283,-417.94748919,0.00024657,3]
[385341685,1757788245912,-441.84389254,0.00024045,2]
[385341686,1757788245922,-62.05251081,0.00024657,3]
[385341687,1757788245931,-480.0,0.00024657,3]
[385341688,1757788245940,-480.0,0.00024657,3]
[385341689,1757788245950,-480.0,0.00024657,3]
[385341690,1757788245959,-1226.08,0.00024657,3]
[385341691,1757788245969,-480.0,0.00024657,3]
[385341692,1757788245979,-180.95513383,0.00024657,3]
[385341693,1757788245989,-510.63,0.00024657,3]
[385341694,1757788245998,-480.0,0.00024657,3]
[385341695,1757788246008,-529.22,0.00024657,3]
[385341696,1757788246017,-480.0,0.00024657,3]
[385341697,1757788246026,-759.98,0.00024657,3]
[385341698,1757788246036,-480.0,0.00024657,3]
[385341699,1757788246045,-580.18,0.00024657,3]
[385341700,1757788246054,-480.0,0.00024657,3]
[385341701,1757788246064,-429.0584627,0.00024657,3]
[385341702,1757788246080,-50.9415373,0.00024657,3]
[385341703,1757788246089,-480.0,0.00024657,3]
[385341704,1757788246099,-480.0,0.00024657,3]
[385341705,1757788246108,-466.08397096,0.00024657,3]
[385341706,1757788246119,-731.95602904,0.00024657,3]
[385341707,1757788246129,-1055.98542462,0.00024657,3]
[385341708,1757788246140,-437.79457538,0.00024657,3]
[385341709,1757788246150,-480.0,0.00024657,3]
[385341710,1757788246159,-512.55021828,0.00024657,3]
[385341711,1757788246168,-228.0,0.000248,2]
[385341712,1757788246178,-224.07830031,0.00024831,2]
[385341713,1757788246187,-160.0,0.00024882,2]
[385341714,1757788246197,-168.0,0.00024887,2]
[385341715,1757788246207,-385.17174446,0.00024896,2]
[385341716,1757788246216,-10496.30655848,0.000249,2]
[385341717,1757788246227,-1987.855937,0.000249,2]
[385341722,1757788255268,-500.0,0.00024656,2]
[385341723,1757788255277,-63.21139385,0.00024656,2]
[385341724,1757788255289,-436.78860615,0.00024656,2]
[385341725,1757788255299,-500.0,0.00024656,2]
[385341726,1757788255308,-500.0,0.00024656,2]
[385341727,1757788255317,-516.4250078,0.00024656,2]
[385341728,1757788255326,-500.0,0.00024656,2]
[385341729,1757788255335,-500.0,0.00024656,2]
[385341730,1757788255344,-500.0,0.00024656,2]
[385341731,1757788255353,-500.0,0.00024656,2]
[385341732,1757788255362,-500.0,0.00024656,2]
[385341733,1757788255373,-500.0,0.00024656,2]
[385341734,1757788255385,-500.0,0.00024656,2]
[385341735,1757788255396,-500.0,0.00024656,2]
[385341736,1757788255405,-500.0,0.00024656,2]
[385341737,1757788255414,-500.0,0.00024656,2]
[385341738,1757788255424,-584.70497733,0.00024656,2]
[385341739,1757788255433,-500.0,0.00024656,2]
[385341740,1757788255442,-500.0,0.00024656,2]
[385341741,1757788255450,-500.0,0.00024656,2]
[385341742,1757788255461,-500.0,0.00024656,2]
[385341743,1757788255471,-500.0,0.00024656,2]
[385341744,1757788255480,-500.0,0.00024656,2]
[385341745,1757788255490,-500.0,0.00024656,2]
[385341746,1757788255500,-500.0,0.00024656,2]
[385341747,1757788255509,-480.0,0.00024657,3]
[385341748,1757788255517,-480.0,0.00024657,3]
[385341749,1757788255526,-411.59884149,0.00024657,3]
[385341750,1757788255537,-2066.8832188,0.00024657,3]
[385341751,1757788255550,-453.90998057,0.00024657,3]
[385341763,1757788286499,2000.0,0.00027397,120]
[385341764,1757788286781,2000.0,0.00027397,120]
[385341765,1757788287051,2000.0,0.00027397,120]
[385341766,1757788287319,2000.0,0.00027397,120]
[385341767,1757788287587,2000.0,0.00027397,120]
[385341768,1757788287862,2000.0,0.00027397,120]
[385341769,1757788288137,2000.0,0.00027397,120]
[385341770,1757788288421,2000.0,0.00027397,120]
[385341771,1757788288723,2000.0,0.00027397,120]
[385341772,1757788289359,2000.0,0.00027397,120]
[385341773,1757788289628,2000.0,0.00027397,120]
[385341774,1757788289917,2000.0,0.00027397,120]
[385341775,1757788290180,2000.0,0.00027397,120]
[385341776,1757788290475,2000.0,0.00027397,120]
[385341777,1757788290767,2000.0,0.00027397,120]
[385341778,1757788291045,2000.0,0.00027397,120]
[385341779,1757788291331,2000.0,0.00027397,120]
[385341780,1757788291610,2000.0,0.00027397,120]
[385341781,1757788292228,2000.0,0.00027397,120]
[385341782,1757788292503,2000.0,0.00027397,120]
[385341783,1757788293022,2000.0,0.00027397,120]
[385341784,1757788293068,2000.0,0.00027397,120]
[385341785,1757788293710,1230.82,0.00027397,120]
[385341896,1757789178707,1000.0,0.00029676,120]
[385341919,1757789391356,3922.85,0.00029676,60]
[385341950,1757789432385,-3000.0,0.00019116,2]
[385341951,1757789432395,-761.77565926,0.000199,2]
[385341952,1757789432405,-761.77565915,0.00021149,2]
[385341953,1757789432414,-162.99,0.00022,2]
[385341954,1757789432423,-181.5553896,0.00022072,2]
[385341955,1757789432432,-761.77565915,0.00022398,2]
[385341956,1757789432441,-177.306304,0.00022512,2]
[385341957,1757789432450,-162.99,0.00022959,2]
[385341958,1757789432459,-761.77565915,0.00023647,2]
[385341959,1757789432468,-300.0,0.0002373,2]
[385341960,1757789432477,-1200.0,0.0002373,2]
[385341961,1757789432486,-1200.0,0.00023731,2]
[385341962,1757789432495,-3000.0,0.00023733,2]
[385341965,1757789432504,-151.0,0.00023976,2]
[385341967,1757789432513,-168.3888056,0.00023976,2]
[385341969,1757789432522,-151.0,0.00023976,2]
[385341971,1757789432532,-151.0,0.00023976,2]
[385341973,1757789432541,-151.0,0.00023976,2]
[385341975,1757789432550,-151.0,0.00023976,2]
[385341977,1757789432559,-500.0,0.00023976,2]
[385341978,1757789432569,-500.0,0.00023976,2]
[385341979,1757789432578,-500.0,0.00023976,2]
[385341980,1757789432589,-20746.26328358,0.00023976,2]
[385341981,1757789432599,-34101.87460865,0.00023976,2]
[385341983,1757789438074,-500.0,0.00023976,2]
[385341984,1757789438086,-509.32012587,0.00023976,2]
[385341985,1757789438098,-725.02279502,0.00023976,2]
[385341986,1757789438127,-1250.0000102,0.00023976,2]
[385341987,1757789438140,-12913.78246026,0.00023976,2]
[385341988,1757789438149,-500.0,0.00023989,2]
[385341989,1757789438159,-552.94629629,0.00023989,2]
[385341990,1757789438169,-500.0,0.00023989,2]
[385341991,1757789438178,-500.0,0.00023989,2]
[385341992,1757789438188,-242.72364193,0.00023989,2]
[385341993,1757789438197,-267.97608734,0.00023989,2]
[385341994,1757789438206,-176.07833081,0.00023989,2]
[385341995,1757789438215,-500.0,0.00023989,2]
[385341996,1757789438224,-500.0,0.00023989,10]
[385341997,1757789438235,-500.0,0.00023989,10]
[385341998,1757789438244,-41780.97855938,0.0002399,2]
[385341999,1757789438254,-162.99,0.00024,2]
[385342000,1757789438263,-5254.42618274,0.00024228,2]
[385342001,1757789438272,-160.0,0.00024235,2]
[385342002,1757789438281,-417.15472785,0.00024235,2]
[385342003,1757789438291,-160.0,0.00024235,2]
[385342004,1757789438300,-500.0,0.0002427,10]
[385342005,1757789438309,-500.0,0.0002427,10]
[385342006,1757789438319,-500.0,0.00024299,2]
[385342007,1757789438328,-3770.73976844,0.000243,2]
[385342008,1757789438342,-8211.19288253,0.000243,2]
[385342009,1757789438352,-5254.42618272,0.0002431,2]
[385342010,1757789438362,-191.149,0.00024328,6]
[385342011,1757789438371,-500.0,0.00024372,10]
[385342012,1757789438381,-501.91968373,0.00024373,2]
[385342013,1757789438391,-511.86442703,0.00024373,2]
[385342014,1757789438400,-504.56323117,0.00024373,2]
[385342015,1757789438409,-500.0,0.00024373,2]
[385342016,1757789438420,-503.27858316,0.00024373,2]
[385342017,1757789438429,-501.39610641,0.00024373,2]
[385342018,1757789438439,-500.0,0.00024373,2]
[385342019,1757789438448,-500.0,0.00024373,2]
[385342020,1757789438458,-500.0,0.00024373,2]
[385342021,1757789438467,-425.66528365,0.00024373,2]
[385342022,1757789438476,-263.13513426,0.00024373,2]
[385342023,1757789438485,-500.0,0.00024373,2]
[385342024,1757789438494,-500.0,0.00024373,2]
[385342025,1757789438503,-298.49901242,0.00024373,2]
[385342026,1757789438512,-500.0,0.00024373,2]
[385342027,1757789438521,-500.0,0.00024373,2]
[385342028,1757789438530,-500.0,0.00024373,2]
[385342029,1757789438539,-500.0,0.00024373,2]
[385342030,1757789438548,-500.32767685,0.00024373,2]
[385342031,1757789438557,-500.0,0.00024373,2]
[385342032,1757789438566,-500.0,0.00024373,2]
[385342033,1757789438576,-500.0,0.00024373,2]
[385342034,1757789438585,-500.0,0.00024373,2]
[385342035,1757789438594,-500.0,0.00024373,2]
[385342036,1757789438603,-500.0,0.00024373,2]
[385342037,1757789438613,-500.0,0.00024373,2]
[385342038,1757789438622,-500.38140165,0.00024373,2]
[385342039,1757789438632,-500.0,0.00024373,2]
[385342040,1757789438641,-500.0,0.00024373,2]
[385342041,1757789438650,-500.0,0.00024373,2]
[385342042,1757789438659,-500.0,0.00024373,2]
[385342043,1757789438668,-500.0,0.00024373,2]
[385342044,1757789438678,-500.0,0.00024373,2]
[385342045,1757789438687,-501.18299892,0.00024373,2]
[385342046,1757789438696,-500.0,0.00024373,2]
[385342047,1757789438705,-500.0,0.00024373,2]
[385342048,1757789438714,-471.41848639,0.00024373,2]
[385342049,1757789438723,-500.0,0.00024373,2]
[385342050,1757789438733,-500.0,0.00024373,2]
[385342051,1757789438742,-500.0,0.00024373,2]
[385342052,1757789438751,-482.53797947,0.00024373,2]
[385342053,1757789438760,-500.0,0.00024373,2]
[385342054,1757789438769,-500.0,0.00024373,2]
[385342055,1757789438778,-1535.83,0.00024375,3]
[385342056,1757789438787,-767.92,0.00024375,3]
[385342057,1757789438795,-383.96,0.00024375,3]
[385342058,1757789438805,-191.98,0.00024375,3]
[385342059,1757789438814,-500.0,0.00024383,10]
[385342060,1757789438824,-575.95,0.0002439,3]
[385342061,1757789438833,-5254.42618272,0.00024393,2]
[385342062,1757789438842,-500.0,0.00024399,2]
[385342063,1757789438851,-260.88836442,0.00024399,2]
[385342064,1757789438861,-565.83204237,0.00024399,2]
[385342065,1757789438884,-200.0,0.00024399,2]
[385342066,1757789438894,-251.89630539,0.00024399,5]
[385342067,1757789438903,-403.96247478,0.00024399,10]
[385342068,1757789438913,-6280.50944643,0.000244,2]
[385342069,1757789438924,-122866.87256535,0.000244,2]
[385342070,1757789438936,-21112.17685975,0.000244,2]
[385342071,1757789438949,-17316.42931803,0.000244,2]
[385342095,1757789440164,-10894.13147631,0.000244,2]
[385342097,1757789440175,-2577.54322757,0.000244,2]
[385342103,1757789440218,-6364.45061956,0.000244,2]
[385342105,1757789440233,-4287.04592193,0.000244,2]
[385342279,1757789444227,-17655.90610484,0.000244,2]
[385342281,1757789444239,-17843.45702669,0.000244,2]
[385342283,1757789444250,-3243.52045813,0.000244,2]
[385342288,1757789444285,-359.67588683,0.000244,2]
[385342290,1757789444297,-6124.41046417,0.000244,2]
[385342293,1757789444318,-30199.05366816,0.000244,2]
[385342482,1757789446245,-2516.67719695,0.000244,2]
[385342484,1757789446256,-1969.752434,0.000244,2]
[385342486,1757789446267,-7329.29721158,0.000244,2]
[385342488,1757789446278,-371.45465753,0.000244,2]
[385342497,1757789446352,-61041.75440151,0.000244,2]
[385343038,1757789807679,150.5,0.00024647,120]
[385343039,1757789808130,150.5,0.00024637,120]
[385343040,1757789808570,150.5,0.00024627,120]
[385343041,1757789809026,150.5,0.000252,120]
[385343042,1757789809464,282.22,0.0002519,120]
[385343044,1757789819571,500.0,0.00026397,120]
[385343046,1757789852387,300.0,0.00027397,120]
[385343047,1757789886404,252.32,0.00026397,120]
[385343059,1757789914969,151.0,0.00024,120]
[385343060,1757789916561,151.0,0.000254,120]
[385343061,1757789918016,151.0,0.000269,120]
[385343062,1757789928242,163.11,0.00024647,120]
[385343068,1757790003149,332.98368396,0.00029691,60]
[385343074,1757790023472,356.33651,0.00027,120]
[385343075,1757790035074,200.0,0.00027,120]
[385343080,1757790163385,300.0,0.00027397,120]
[385343082,1757790167681,205.0,0.00024389,120]
[385343083,1757790168130,205.0,0.00024379,120]
[385343084,1757790168567,205.0,0.00024369,120]
[385343085,1757790169004,205.0,0.00025194,120]
[385343086,1757790169463,205.0,0.00025184,120]
[385343087,1757790169914,205.0,0.00025174,120]
[385343088,1757790170376,205.0,0.00027384,120]
[385343089,1757790170821,205.0,0.00027374,120]
[385343092,1757790205299,-300.0,0.000199,2]
[385343093,1757790205910,-480.0,0.000199,2]
[385343100,1757790321239,270.764914,0.00027397,120]
[385343102,1757790408303,526.0,0.00024389,120]
[385343103,1757790408748,526.0,0.00024379,120]
[385343104,1757790409196,526.0,0.00024369,120]
[385343106,1757790409671,526.0,0.0002519,120]
[385343108,1757790410141,526.0,0.0002518,120]
[385343110,1757790410632,526.0,0.0002517,120]
[385343112,1757790411095,526.0,0.00027384,120]
[385343114,1757790411558,526.0,0.00027374,120]
[385343119,1757790473233,300.0,0.00027397,120]
[385343123,1757790528953,150.5,0.00024474,120]
[385343124,1757790529400,267.5,0.00024464,120]
[385343258,1757790638334,-500.0,0.000199,2]
[385343259,1757790638343,-1044.24823932,0.000199,2]
[385343260,1757790638353,-1044.24823919,0.00021149,2]
[385343261,1757790638362,-1044.24823919,0.00022398,2]
[385343262,1757790638371,-199.347142,0.00022648,2]
[385343263,1757790638380,-174.58125714,0.0002327,2]
[385343264,1757790638389,-25.9855968,0.00023287,10]
[385343272,1757790640366,-474.0144032,0.00023287,10]
[385343273,1757790640376,-373.83887114,0.00023633,2]
[385343274,1757790640386,-1044.24823919,0.00023647,2]
[385343275,1757790640395,-1200.0,0.00023731,2]
[385343276,1757790640405,-300.0,0.00023732,2]
[385343277,1757790640418,-32808.92948953,0.00023733,2]
[385343291,1757790643560,-2500.0,0.00023733,2]
[385343293,1757790643571,-4.47601184,0.00023733,2]
[385343295,1757790643581,-3000.0,0.00023733,2]
[385343297,1757790643590,-2205.02575386,0.000238,2]
[385343299,1757790643599,-181.08010149,0.00023861,2]
[385343301,1757790643608,-500.0,0.00023861,2]
[385343303,1757790643617,-500.0,0.00023861,2]
[385343305,1757790643626,-596.97055021,0.00023861,2]
[385343307,1757790643636,-5531.16705536,0.00023861,2]
[385343593,1757790646482,-13060.00169328,0.00023861,2]
[385343595,1757790646494,-959.89,0.00023866,3]
[385343597,1757790646503,-479.95,0.00023866,3]
[385343599,1757790646512,-239.97,0.00023866,3]
[385343601,1757790646521,-719.95,0.00023866,3]
[385343602,1757790646530,-1000.44019369,0.00023875,2]
[385343604,1757790646539,-500.0,0.00023875,2]
[385343606,1757790646549,-137405.08321357,0.00023876,2]
[385343608,1757790646557,-151.0,0.000239,7]
[385343610,1757790646567,-151.0,0.000239,5]
[385343612,1757790646576,-2205.02575386,0.00023989,2]
[385343614,1757790646586,-151.0,0.00024,6]
[385343616,1757790646595,-151.0,0.00024,10]
[385343618,1757790646605,-151.0,0.00024,8]
[385343620,1757790646614,-151.0,0.00024,7]
[385343622,1757790646623,-151.0,0.000241,10]
[385343624,1757790646632,-151.0,0.000241,9]
[385343626,1757790646641,-2205.02575386,0.00024179,2]
[385343628,1757790646651,-151.0,0.000242,9]
[385343630,1757790646661,-151.0,0.000242,8]
[385343632,1757790646670,-417.15472785,0.00024211,2]
[385343635,1757790646680,-160.0,0.00024218,2]
[385343636,1757790646689,-160.0,0.00024218,2]
[385343638,1757790646698,-151.0,0.000243,7]
[385343640,1757790646707,-151.0,0.000243,7]
[385343642,1757790646716,-151.0,0.000243,10]
[385343644,1757790646726,-151.0,0.000243,9]
[385343646,1757790646735,-8803.94740924,0.000243,2]
[385343648,1757790646744,-327.509,0.00024327,6]
[385343650,1757790646754,-2205.02575386,0.00024368,2]
[385343652,1757790646763,-13966.8225407,0.00024399,2]
[385343654,1757790646772,-77242.0200383,0.00024399,2]
[385343656,1757790646781,-151.0,0.000244,8]
[385343658,1757790646790,-500.0,0.000244,6]
[385343660,1757790646799,-151.0,0.000244,6]
[385343662,1757790646809,-1000.0,0.000244,2]
[385343664,1757790646819,-562.30123503,0.000244,2]
[385343666,1757790646828,-173.510086,0.000244,2]
[385343669,1757790646838,-151.0,0.000244,2]
[385343671,1757790646847,-151.0,0.000244,2]
[385343673,1757790646856,-151.0,0.000244,2]
[385343674,1757790646866,-166.11606898,0.000244,2]
[385343676,1757790646875,-13609.88311246,0.00024484,2]
[385343678,1757790646884,-373.83887114,0.00024488,2]
[385343680,1757790646893,-151.0,0.000245,7]
[385343682,1757790646902,-151.0,0.000245,7]
[385343684,1757790646913,-151.0,0.000245,6]
[385343686,1757790646922,-28382.09985746,0.00024557,3]
[385343688,1757790646930,-233.1568031,0.00024557,3]
[385343690,1757790646940,-217.73838971,0.00024557,3]
[385343692,1757790646949,-847.12775373,0.00024557,3]
[385343694,1757790646959,-417.15472785,0.00024557,3]
[385343696,1757790646968,-531.13137412,0.00024557,3]
[385343698,1757790646980,-160.0,0.00024557,3]
[385343700,1757790646989,-2205.02575386,0.00024557,2]
[385343702,1757790646999,-466.81605146,0.000246,60]
[385343704,1757790647008,-151.0,0.000246,7]
[385343706,1757790647017,-151.0,0.000246,10]
[385343708,1757790647026,-151.0,0.000246,6]
[385343710,1757790647036,-151.0,0.000246,9]
[385343712,1757790647046,-151.0,0.000246,10]
[385343715,1757790647061,-161.7920066,0.00024603,2]
[385343716,1757790647071,-584.4874247,0.0002463,2]
[385343719,1757790647081,-843.68744066,0.00024656,2]
[385343721,1757790647090,-500.0,0.00024656,10]
[385343723,1757790647100,-500.0,0.00024656,10]
[385343725,1757790647109,-500.0,0.00024656,10]
[385343727,1757790647118,-500.0,0.00024656,10]
[385343729,1757790647128,-304.64571972,0.00024656,2]
[385343731,1757790647138,-1218.58287888,0.00024656,2]
[385343733,1757790647148,-2741.81147749,0.00024656,2]
[385343735,1757790647157,-4874.33151553,0.00024656,2]
[385343737,1757790647167,-7608.52685003,0.00024656,2]
[385343739,1757790647176,-772.30742577,0.00024656,2]
[385343741,1757790647185,-3086.14047336,0.00024656,2]
[385343743,1757790647195,-945.25609208,0.00024656,2]
[385343745,1757790647204,-442.87581589,0.00024656,2]
[385343747,1757790647213,-229.09762238,0.00024656,2]
[385343749,1757790647223,-170.498,0.00024656,2]
[385343751,1757790647232,-200.0,0.00024656,2]
[385343753,1757790647241,-303.76515095,0.00024656,2]
[385343755,1757790647251,-4565.14475837,0.00024657,2]
[385343757,1757790647260,-233.1568031,0.00024657,7]
[385343759,1757790647269,-480.0,0.00024657,3]
[385343761,1757790647279,-480.0,0.00024657,3]
[385343763,1757790647288,-480.0,0.00024657,3]
[385343765,1757790647297,-480.0,0.00024657,3]
[385343767,1757790647307,-480.0,0.00024657,3]
[385343769,1757790647316,-480.0,0.00024657,3]
[385343771,1757790647325,-480.0,0.00024657,3]
[385343773,1757790647335,-480.0,0.00024657,3]
[385343791,1757790647505,-480.0,0.00024657,3]
[385343793,1757790647515,-480.0,0.00024657,3]
[385343795,1757790647525,-480.0,0.00024657,3]
[385343797,1757790647535,-480.0,0.00024657,3]
[385343799,1757790647544,-480.0,0.00024657,3]
[385343802,1757790647554,-480.0,0.00024657,3]
[385343804,1757790647563,-480.0,0.00024657,3]
[385343806,1757790647573,-480.0,0.00024657,3]
[385343808,1757790647583,-480.0,0.00024657,3]
[385343810,1757790647593,-420.90977947,0.00024657,3]
[385343812,1757790647602,-480.0,0.00024657,3]
[385343814,1757790647611,-480.0,0.00024657,3]
[385343816,1757790647619,-281.84316325,0.00024657,3]
[385343818,1757790647628,-480.0,0.00024657,3]
[385343820,1757790647638,-480.0,0.00024657,3]
[385343822,1757790647647,-480.0,0.00024657,3]
[385343824,1757790647656,-480.0,0.00024657,3]
[385343826,1757790647665,-480.0,0.00024657,3]
[385343828,1757790647674,-480.0,0.00024657,3]
[385343829,1757790647683,-480.0,0.00024657,3]
[385343831,1757790647693,-480.0,0.00024657,3]
[385343834,1757790647704,-480.0,0.00024657,3]
[385343836,1757790647713,-480.0,0.00024657,3]
[385343838,1757790647722,-480.0,0.00024657,3]
[385343840,1757790647732,-480.0,0.00024657,3]
[385343841,1757790647742,-480.0,0.00024657,3]
[385343844,1757790647752,-480.0,0.00024657,3]
[385343845,1757790647763,-480.0,0.00024657,3]
[385343847,1757790647772,-480.0,0.00024657,3]
[385343849,1757790647781,-480.0,0.00024657,3]
[385343852,1757790647792,-480.0,0.00024657,3]
[385343854,1757790647801,-480.0,0.00024657,3]
[385343856,1757790647810,-436.12094549,0.00024657,3]
[385343858,1757790647819,-480.0,0.00024657,3]
[385343860,1757790647828,-480.0,0.00024657,3]
[385343862,1757790647838,-480.0,0.00024657,3]
[385343864,1757790647848,-480.0,0.00024657,3]
[385343866,1757790647858,-480.0,0.00024657,3]
[385343868,1757790647867,-480.0,0.00024657,3]